Cogmind - Beta 14 @@@ ROGUE MODE // 2024.08.13 @ 00:02:25 Player: Darcyisverycute Result: Destroyed by MP-X50(R) with Subdweller Machine Gun Performance ------------- Evolutions (0) 0 Regions Visited (2) 400 Robots Destroyed (23) 115 Value Destroyed (635) 635 Prototype IDs (0) 0 Alien Tech Used (0) 0 Bonus (8) 8 TOTAL SCORE: 1158 Bonus ------- High Alert Combat Kills 8 Cogmind --------- Core Integrity 0/250 Matter 202/300 Energy 150/150 System Corruption 1% Temperature Cool (12) Movement Walking (200) Ox1 Location -10/Subcaves Parts ------- > --- POWER (1) -------- Light Angular Momentum Engine > --- PROPULSION (2) --- Carbon-fiber Leg Makeshift Leg > --- UTILITY (2) ------ Scrap Shield > --- WEAPON (2) ------- Bore Cannon > --- INVENTORY (5) ---- Hacking Suite Makeshift System Shield Subdweller Machine Gun Peak State ------------ > --- POWER ------------ Light Angular Momentum Engine > --- PROPULSION ------- Carbon-fiber Leg Carbon-fiber Leg > --- UTILITY ---------- Armor Integrity Analyzer Phase Shifter > --- WEAPON ----------- Beamcaster Bore Cannon > --- INVENTORY -------- Subdweller Power Source Hacking Suite Assault Rifle Scrap Shield Fragment [Rating: 30] Favorites ----------- Power Light Angular Momentum Engine Engine Light Angular Momentum Engine Propulsion Aluminum Leg Leg Aluminum Leg Utility Small Storage Unit Device Phase Shifter Storage Small Storage Unit Processor Armor Integrity Analyzer Protection Scrap Shield Weapon Bore Cannon Energy Gun Beamcaster Ballistic Gun Assault Rifle Ballistic Cannon Bore Cannon Launcher Grenade Launcher Build | -11 -10 -10 ------- Run | Yrd Mat Sub Slots Evolved . | . . . Power . | . . . Propulsion . | . . . Utility . | . . . Weapon . | . . . Parts Attached 26 | 6 3 17 Power 5 | 1 . 4 Engine 5 | 1 . 4 Core . | . . . Reactor . | . . . Propulsion 8 | 2 1 5 Treads . | . . . Leg 8 | 2 1 5 Wheel . | . . . Hover . | . . . Flight . | . . . Utility 7 | 1 1 5 Device 1 | . . 1 Storage 2 | 1 . 1 Processor 2 | . 1 1 Hackware . | . . . Protection 2 | . . 2 Artifact . | . . . Weapon 6 | 2 1 3 Energy Gun 3 | 1 . 2 Energy Cannon . | . . . Ballistic Gun 1 | 1 . . Ballistic Cannon 1 | . . 1 Launcher 1 | . 1 . Special Weapon . | . . . Impact Weapon . | . . . Slashing Weapon . | . . . Piercing Weapon . | . . . Special Melee Weapon . | . . . Unidentified Prototypes . | . . . Parts Lost 11 | . . 11 Power 3 | . . 3 Propulsion 4 | . . 4 Utility 1 | . . 1 Weapon 3 | . . 3 Highest Loss Streak 10 | . . 10 To Critical Strikes . | . . . Average Slot Usage (%) 93 | . 94 92 Engine 13 | . 14 13 Leg 27 | . 28 27 Storage 12 | . 14 11 Processor 10 | . 8 11 Energy Gun 7 | . . 11 Ballistic Gun 6 | . 14 1 Ballistic Cannon 7 | . . 11 Launcher 5 | . 13 1 Peak Build Rating 30 | 6 7 30 Average Rating 17 | 4 6 24 On Entrance 4 | . 6 7 Naked Turns . | . . . Heaviest Build 36 | 14 15 36 Greatest Support 40 | 20 20 40 Greatest Overweight (x) 3 | . . 3 Average Overweight (x) . | . . . Largest Inventory Capacity 8 | 8 8 8 Average Capacity 7 | 6 8 7 Most Carried 8 | 5 7 8 Average Carried 6 | 1 5 6 Final Capacity 8 | 8 8 5 Final Carried 7 | 2 7 3 Class Distribution -------------------- 53% | Scavenger-Mutant 46% | Mutant Dominant Class ---------------- Mutant | -10/Materials Scavenger-Mutant | -10/Subcaves Resources | -11 -10 -10 ----------- Run | Yrd Mat Sub Matter Collected 952 | 254 130 568 Remotely . | . . . Salvage Created 452 | . 260 192 Parts 30 | . 22 8 Haulers Intercepted 1 | . 1 . Recyclers Shooed . | . . . Parts Field Recycled . | . . . Retrieved Matter . | . . . Parts Self-Destructed 8 | . . 8 Prevented . | . . . Kills | -11 -10 -10 ------- Run | Yrd Mat Sub Combat Hostiles Destroyed 18 | . 13 5 Guns 4 | . 2 2 Cannons 2 | . . 2 AOE 12 | . 11 1 Classes Destroyed 7 | . 6 1 Tunneler 1 | . 1 . Hauler 1 | . 1 . Operator 1 | . 1 . Watcher 2 | . 2 . Swarmer 6 | . 6 . Grunt 8 | . 7 1 Subdweller 4 | . . 4 Best Kill Streak 6 | . 6 2 Combat Bots Only 4 | . 4 2 Max Kills in Single Turn 2 | . 2 1 Gunslinging . | . . . Exploded 2 | . 2 1 Melee . | . . . Uniques/NPCs Destroyed . | . . . Combat | -11 -10 -10 -------- Run | Yrd Mat Sub Hostile Shots Fired 132 | . 34 98 Missed 52 | . 15 37 Damage Taken 1793 | . 358 1435 Core 253 | . 34 219 Absorbed by Shields . | . . . Core Remaining (%) 100 | 100 . . Volleys Fired 72 | . 24 48 Largest 2 | . 2 2 Hottest 132 | . 50 132 Shots Fired 133 | . 44 89 Gun 66 | . 24 42 Cannon 46 | . . 46 Launcher 21 | . 20 1 Special . | . . . Kinetic 72 | . 24 48 Thermal 40 | . . 40 Explosive 21 | . 20 1 Electromagnetic . | . . . Robot Hit Streak 7 | . 5 7 Robot Miss Streak 4 | . 4 4 Penetration Max . | . . . Secondary Targets . | . . . Shots Hit Robots 43 | . 14 29 Core Hits 37 | . 30 7 Critical Kills 2 | . . 2 Critical Parts Destroyed 3 | . . 3 Critical Strikes 15 | . . 15 Burn 4 | . . 4 Destroy 11 | . . 11 Melee Attacks . | . . . Impact . | . . . Slashing . | . . . Piercing . | . . . Sneak Attacks . | . . . Combat Hostiles . | . . . Follow-up Attacks . | . . . Damage Inflicted 1880 | . 1162 718 Guns 413 | . 133 280 Cannons 325 | . . 325 Explosions 1142 | . 1029 113 Melee . | . . . Ramming . | . . . Kinetic 468 | . 133 335 Thermal 270 | . . 270 Explosive 1142 | . 1029 113 Electromagnetic . | . . . Impact . | . . . Slashing . | . . . Piercing . | . . . Highest Corruption 1 | . 1 1 Average Corruption 1 | . 1 1 Corruption Purged . | . . . Corruption Blocked . | . . . Effects 11 | . 3 8 Message Errors 2 | . . 2 Matter Fused 4 | . 1 3 Energy Discharges 2 | . 1 1 Data Loss (minor) 1 | . 1 . Data Loss (major) 2 | . . 2 Overload Shots . | . . . Overflow Damage 39 | . 39 . Projectiles . | . . . Explosions 39 | . 39 . Melee . | . . . Knockbacks 8 | . . 8 Impact . | . . . Kinetic 7 | . . 7 Secondary 1 | . . 1 Self-Inflicted Damage 174 | . 152 22 Shots 8 | . 7 1 Rammed . | . . . Targets Rammed . | . . . Kicked . | . . . Crushed . | . . . Highest Temperature 137 | . 8 137 Average Temperature 42 | . 3 45 Received Heat Transfer 483 | . 69 414 Siege Activations . | . . . Robots Corrupted . | . . . Combat Hostiles . | . . . Parts Fried . | . . . Impact Corruptions . | . . . Robots Melted . | . . . Combat Hostiles . | . . . Parts Melted 3 | . . 3 Heat Transferred 777 | . . 777 Parts Sabotaged . | . . . Parts Stolen . | . . . Parts Stripped . | . . . Power Chain Reactions . | . . . Alert | -11 -10 -10 ------- Run | Yrd Mat Sub Peak Influence 498 | . 498 . Initial . | . . . Average 303 | . 349 . Maximum Alert Level 2 | . 2 . Low Security (%) 30 | 100 19 . Level 1 21 | . 25 . Level 2 47 | . 55 . Level 3 . | . . . Level 4 . | . . . Level 5 . | . . . High Security . | . . . Max Security . | . . . Squads Dispatched 2 | . 2 . Investigation . | . . . Extermination . | . . . Reinforcement 2 | . 2 . Assault . | . . . Garrison . | . . . Intercept . | . . . Searches Triggered . | . . . Construction Impeded . | . . . Haulers Reinforced . | . . . Active Scanning Responses . | . . . Cargo Convoy Interrupts . | . . . Stealth | -11 -10 -10 --------- Run | Yrd Mat Sub Distress Signals . | . . . Communications Jammed . | . . . Distress Signals . | . . . Times Spotted 31 | . 17 14 Peak Tracking Total 6 | . 4 6 Tactical Retreats 2 | . . 2 Traps | -11 -10 -10 ------- Run | Yrd Mat Sub Traps Triggered 1 | . 1 . Indirectly . | . . . Trap Hack Attempts . | . . . Triggered . | . . . Disarmed . | . . . Reprogrammed . | . . . Reused . | . . . Traps Extracted . | . . . Installed . | . . . Triggered . | . . . Machines | -11 -10 -10 ---------- Run | Yrd Mat Sub Machines Disabled 8 | . 6 2 Max in Single Turn 2 | . 2 2 Machines Repaired . | . . . Machines Dismantled . | . . . Machines Sabotaged . | . . . Overloaded Fab Kills . | . . . Hacking | -11 -10 -10 --------- Run | Yrd Mat Sub Machines Accessed 2 | . 2 . Terminals 2 | . 2 . Fabricators . | . . . Repair Stations . | . . . Recycling Units . | . . . Scanalyzers . | . . . Garrison Access . | . . . Total Hacks 4 | . 4 . Successful 2 | . 2 . Failed 2 | . 2 . Catastrophic . | . . . Database Lockouts . | . . . Manual 1 | . 1 . Terminals 4 | . 4 . Fabricators . | . . . Repair Stations . | . . . Recycling Units . | . . . Scanalyzers . | . . . Garrison Access . | . . . Terminal Hacks 1 | . 1 . Robot Analysis 1 | . 1 . Fabricator Hacks . | . . . Repair Station Hacks . | . . . Recycling Unit Hacks . | . . . Scanalyzer . | . . . Garrison Access Hacks . | . . . Unauthorized Hacks 1 | . 1 . Terminals 1 | . 1 . Botnet 1 | . 1 . Fabricators . | . . . Repair Stations . | . . . Recycling Units . | . . . Scanalyzers . | . . . Garrison Access . | . . . Data Cores Recovered . | . . . Used . | . . . Hacking Detections 2 | . 2 . Full Trace Events . | . . . Feedback Events . | . . . Feedback Blocked . | . . . Robot Schematics Acquired . | . . . Robots Built . | . . . Authchips . | . . . Time . | . . . Total Robot Build Rating . | . . . Part Schematics Acquired . | . . . Parts Built . | . . . Authchips . | . . . Time . | . . . Total Part Build Rating . | . . . Parts Repaired . | . . . Time . | . . . Parts Recycled . | . . . Recycled Matter . | . . . Retrieved Matter . | . . . Retrieved Components . | . . . Parts Scanalyzed . | . . . Part Schematics Acquired . | . . . Parts Damaged . | . . . Bothacking | -11 -10 -10 ------------ Run | Yrd Mat Sub Used RIF Installer . | . . . Robots Hacked . | . . . Non-combat . | . . . Combat . | . . . Robot Hacks Applied . | . . . Relay Couplers Released . | . . . Fabnet Peak Effective % . | . . . Robots Rewired . | . . . Allies Hacked . | . . . Hacks Repelled . | . . . Allies | -11 -10 -10 -------- Run | Yrd Mat Sub Total Allies . | . . . Largest Group . | . . . Highest-Rated Group . | . . . Highest-Rated Ally . | . . . Total Orders . | . . . Ally Attacks . | . . . Total Damage . | . . . Kills . | . . . Allies Corrupted . | . . . Allies Melted . | . . . Intel | -11 -10 -10 ------- Run | Yrd Mat Sub Robot Analysis Total 1 | . 1 . Derelict Logs Recovered . | . . . Drone Launches . | . . . Drone Recoveries . | . . . Exploration | -11 -10 -10 ------------- Run | Yrd Mat Sub Turns Passed 1270 | 67 441 762 Spaces Moved 814 | 54 298 462 Core 24 | 17 . 7 Treads . | . . . Legs 790 | 37 298 455 Wheels . | . . . Hover . | . . . Flight . | . . . Fastest Speed 50 | 50 120 50 Average Speed 120 | 97 120 123 Slowest Speed 200 | 120 120 200 Overloaded Moves . | . . . Propulsion Burnouts . | . . . Robots Hopped . | . . . Cave-ins Triggered . | . . . Exploration Rate (%) 34 | 3 62 39 Regions Visited 2 Branch Regions 1 Pre-discovered Areas . | . . . Known Exits Taken 1 | . 1 . Unknown Exits Taken 1 | 1 . . Scrap Searched 7 | . . 7 Spaces Dug 7 | . 5 2 Terrain Destroyed 153 | . 136 17 Melee . | . . . Projectile 13 | . . 13 AOE 140 | . 136 4 Terrain Rammed . | . . . Walls Destroyed . | . . . Machines Disabled . | . . . Actions | -11 -10 -10 --------- Run | Yrd Mat Sub Total 971 | 67 336 568 Wait 19 | 1 7 11 Move 812 | 53 297 462 Hop . | . . . Pick Up 25 | 7 4 14 Fast Attach 10 | 1 2 7 Attach 15 | 5 . 10 Detach 6 | . 1 5 Swap 1 | . 1 . Drop 10 | . . 10 Fire 72 | . 24 48 Melee . | . . . Ram . | . . . Kick . | . . . Crush . | . . . Escape Stasis . | . . . Rewire . | . . . Trap . | . . . Miscellaneous 1 | . . 1 Route ------- -11/Scrapyard -10/Materials (discovered 3 exits: *Mat x2 / *Sub) -10/Subcaves History --------- Turn | Location | Event 8 | -11/Scrapyard | Discovered new exit (range 16) 68 | -11/Scrapyard | Entered Materials 267 | -10/Materials | Discovered new exit (range 3) 268 | -10/Materials | Identified exit to Materials 315 | -10/Materials | Build established: Mutant 336 | -10/Materials | Discovered exit to Materials (range 15) 502 | -10/Materials | Discovered new exit (range 7) 508 | -10/Materials | Identified exit to Subcaves 509 | -10/Materials | Entered Subcaves 590 | -10/Subcaves | Ambushed by swarm of Subdwellers 593 | -10/Subcaves | Ambushed by Subdwellers from Twisted Machinery 645 | -10/Subcaves | Lost 4 allies 654 | -10/Subcaves | Core integrity fell below 50% 669 | -10/Subcaves | Core integrity fell below 20% 702 | -10/Subcaves | Lost 10 parts (3p4n1u2w) 778 | -10/Subcaves | Shifting Twisted Machinery released Mak. Light Armor Plating 806 | -10/Subcaves | Shifting Twisted Machinery released Sub. Machine Gun 911 | -10/Subcaves | Build established: Scavenger-Mutant 994 | -10/Subcaves | Disturbed a concealed Subdweller 1219 | -10/Subcaves | Visited Clippyterm 1271 | -10/Subcaves | Destroyed by MP-X50(R) with Subdweller Machine Gun Last Messages --------------- 01024_ Acquired 1 matter. 01025_ HV Slug penetrates Wall. 01040_ G-47 Trooper suffers critical hit (Destroy). 01040_ G-47 Trooper destroyed. 01043_ Acquired 41 matter. 01049_ Imp. Heat Sink fries itself beyond repair. 01083_ System corrupted: Energy discharge (-52). 01100_ System corrupted: Matter fused (-9). 01153_ E=1>P#0%N#KEDVAIDVKF6UXQWFWIF/8,LMHWW 01182_ A thin wall crumbles away, revealing a door. 01186_ HV Slug penetrates Wall. 01191_ HV Slug penetrates Sealed Doors. 01200_ HV Slug penetrates Wall. 01215_ HV Slug penetrates Sealed Doors. 01215_ HV Slug penetrates Wall. 01219_ The door opens automatically. 01264_ Discarded Armor Integrity Analyzer. 01265_ Dropped Sml. Storage Unit. 01269_ HV Slug penetrates Wall. 01269_ Beamcaster destroyed. Map ----- +----------------------------------------------------+ | ?????????????????????????????????????????????????? | | ?????????????????????????????????????????????????? | | ?????????????????????????????????????????????????? | | ?????????????????????????????????????????????????? | | ?????????????????????????????????????????????????? | | ?????????????????????????????????????????????????? | | ?????????????????????????????????????????????????? | | ?????????????????????????????????????????????????? | | ?????????????????????????????????????????????????? | | ?????????????????????????????????????????????????? | | ?????????????????????????????????????????????????? | | ?????????????????????????????????????????????????? | | ?????????????????????????????????????????????????? | | ?????????????????????????????????????????????????? | | ?????????????????????????????????????????????????? | | ?????????????????????????????????????????????????? | | ?????????????????????????????????????????????????? | | ?????????????????????????????????????????????????? | | ?????????????????????????????????????????????????? | | ####?????????????????????????????????????????????? | | # ##????????????????????????????????????????????? | | #????????????????????????????????##??????????? | | #???????#######???????????????? ???????????? | | #???????#"" ""#???####??????? "????????????? | | #???????#" "#?### !###??? """""????????????? | | # ##??????#" "#?# !@R## """"????????????? | | # ####???### "##?# *R """"????????????? | | ## ##?##"# #"#?# ## "" """#???????????? | | ?## ### # #### #### "" "" #???????????? | | ?## ## ## #??### ????????????? | | ?# ### ##?????? ""???????????? | | ?## #?## #??????? ???#???????????? | | ??### #??# ## #???????????????????????? | | ????## #??# ###### #? ??????????????????????? | | ?????# #### #???? #?????????????????????? | | ????## #??? ?????????????????????? | | ##### #??? #????????????????????? | | # ## #????????????????????? | | # ### ##????????????????????? | | ###### #### ### #?????????????????????? | | ?????# ######?# ### #?????????????????????? | | ?????## ## #??##?????????????????????? | | ??????## #?????????????????????????? | | #??????## #?????????????????????????? | | # ## #??????????????????????????? | | # ##??????????????????????????? | | ?# ### ???????????????????????? | | ????##??## ### # ???????????????????????? | | ???????## ##???#?? ?????????????????????????? | | ??????## #???????????????????????????????????? | +----------------------------------------------------+ Best States ------------- Heat Dissipation 25 Energy Generation 18 Energy Capacity 250 Matter Stores 300 Matter Capacity 300 Sight Range 16 Terrain Scan Density 10 Armor Coverage 800 Evasion (%) 55 Armor Integrity Analysis 30 Item Schematics ----------------- None Robot Schematics ------------------ None Fabricated ------------ Nothing Alien Tech Used ----------------- None Achievements -------------- None Challenges ------------ None Game ------ Seed AssaultRocketObliterator Manual? 0 Play Time 00:21:40 Cumulative 63.4 hours Start 2024.08.12 @ 23:44:18 End 2024.08.13 @ 00:02:25 Sessions 1 Manual Loads 0 Difficulty Rogue Special Mode None Game No. 29 Rogue 21 Adventurer 8 Explorer 0 Win Type - Total 1 Types 1/0/0/0/0/0/0/0/0 Lore% 25 Gallery% 43 Achievement% 41 Wizard Run 0 Options --------- Layout 0 ASCII 0 Keyboard 1 Movement Numpad Keybinds 1 Fullscreen 1 Font 18/SmallcapsGlow Map View 76x50 Zoom Use 0% Tactical HUD 1 Map Filters NONE Filters NONE Steam 1 RUN: 90547cf4-3b1a-4c47-891f-6af26a365492